[Event "Turkish Cup 2024"]
[Site "Denizli"]
[Date "2024.08.03"]
[Round "7"]
[White "Gunal, Yusuf Kursat"]
[Black "Cicek, Bilal Emre"]
[Result "1/2-1/2"]
[ECO "E04"]
[WhiteElo "1773"]
[BlackElo "1963"]
[Annotator "ChessBase"]
[PlyCount "173"]
[EventDate "2024.08.01"]
[EventType "swiss"]
[EventCountry "TUR"]
[SourceTitle "playchess.com"]
[Source "ChessBase"]
[SourceQuality "1"]
[TimeControl "5400+30"]

1. d4 {[%emt 0:01:00]} d5 {[%emt 0:01:00]} 2. Nf3 {[%emt 0:00:30]} e6 {[%emt 0:00:30]} 3. g3 {[%emt 0:00:00]} Nf6 {[%emt 0:00:00]} 4. Bg2 {[%emt 0:00:00]} c5 {[%emt 0:00:00]} 5. c4 {[%emt 0:00:00]} dxc4 {[%emt 0:00:00]} 6. O-O {[%emt 0:00:00]} Nc6 {[%emt 0:00:00]} 7. dxc5 {[%emt 0:00:00]} Qxd1 {[%emt 0:00:00]} 8. Rxd1 {[%emt 0:00:00]} Bxc5 {[%emt 0:00:00]} 9. Nbd2 {[%emt 0:00:00]} c3 {[%emt 0:00:30]} 10. bxc3 {[%emt 0:00:00]} O-O {[%emt 0:00:30]} 11. Nb3 {[%emt 0:00:30]} Be7 {[%emt 0:00:00]} 12. Nfd4 {[%emt 0:00:00]} Bd7 {[%emt 0:00:00]} 13. Nxc6 {[%emt 0:01:00]} Bxc6 {[%emt 0:00:00]} 14. Bxc6 {[%emt 0:00:30]} bxc6 {[%emt 0:00:00]} 15. c4 {[%emt 0:01:30]} a5 {[%emt 0:07:30]} 16. Bd2 {[%emt 0:05:30]} a4 {[%emt 0:03:30]} 17. Nd4 {[%emt 0:01:30]} Rfc8 {[%emt 0:02:30]} 18. f3 {[%emt 0:18:30]} Nd7 {[%emt 0:02:30]} 19. Bc3 {[%emt 0:05:30]} Nb6 {[%emt 0:01:30]} 20. Rac1 {[%emt 0:04:30]} Ba3 {[%emt 0:07:30]} 21. Rc2 {[%emt 0:00:30]} Nxc4 {[%emt 0:01:30]} 22. Kf2 {[%emt 0:00:30]} Bf8 {[%emt 0:10:30]} 23. Ba1 {[%emt 0:04:30]} Na5 {[%emt 0:01:30]} 24. Rdc1 {[%emt 0:03:30]} c5 {[%emt 0:00:30]} 25. Nb5 {[%emt 0:00:30]} Nc6 {[%emt 0:03:30]} 26. Rc4 {[%emt 0:02:30]} Nb4 {[%emt 0:07:30]} 27. a3 {[%emt 0:05:30]} Nd5 {[%emt 0:00:30]} 28. e4 {[%emt 0:01:30]} Nb6 {[%emt 0:00:30]} 29. R4c2 {[%emt 0:00:30]} Rd8 {[%emt 0:03:30]} 30. Ke3 {[%emt 0:02:30]} Rd7 {[%emt 0:03:30]} 31. Be5 {[%emt 0:05:30]} Rc8 {[%emt 0:10:30]} 32. f4 {[%emt 0:06:30]} f6 {[%emt 0:00:30]} 33. Bc3 {[%emt 0:00:00]} Nc4+ {[%emt 0:01:30]} 34. Ke2 {[%emt 0:01:00]} Rb8 {[%emt 0:00:30]} 35. Be1 {[%emt 0:01:30]} Na5 {[%emt 0:02:30]} 36. Bxa5 {[%emt 0:01:30]} Rxb5 {[%emt 0:01:30]} 37. Bd2 {[%emt 0:04:30]} Rd4 {[%emt 0:07:30]} 38. Be3 {[%emt 0:02:30]} Rxe4 {[%emt 0:00:30]} 39. Kf3 {[%emt 0:00:30]} f5 {[%emt 0:01:30]} 40. Bxc5 {[%emt 0:00:30]} Bxc5 {[%emt 0:02:30]} 41. Rxc5 {[%emt 0:00:30]} Rxc5 {[%emt 0:00:30]} 42. Rxc5 {[%emt 0:00:30]} Kf7 {[%emt 0:00:00]} 43. Rc7+ {[%emt 0:02:30]} Kf6 {[%emt 0:00:00]} 44. Ra7 {[%emt 0:00:00]} h6 {[%emt 0:00:00]} 45. h4 {[%emt 0:03:00]} Rc4 {[%emt 0:01:00]} 46. Kg2 {[%emt 0:00:30]} g5 {[%emt 0:01:30]} 47. fxg5+ {[%emt 0:00:30]} hxg5 {[%emt 0:00:30]} 48. h5 {[%emt 0:00:00]} g4 {[%emt 0:03:43]} 49. h6 {[%emt 0:01:00]} Rc2+ {[%emt 0:01:14]} 50. Kg1 {[%emt 0:00:30]} Rc8 {[%emt 0:00:03]} 51. h7 {[%emt 0:06:20]} Rh8 {[%emt 0:00:05]} 52. Kg2 {[%emt 0:01:03]} e5 {[%emt 0:00:05]} 53. Ra6+ {[%emt 0:01:36]} Kg5 {[%emt 0:01:50]} 54. Ra7 {[%emt 0:00:09]} f4 {[%emt 0:00:00]} 55. gxf4+ {[%emt 0:01:06]} exf4 {[%emt 0:00:00]} 56. Rg7+ {[%emt 0:01:38]} Kh4 {[%emt 0:00:03]} 57. Rf7 {[%emt 0:00:00]} f3+ {[%emt 0:00:41]} 58. Kf2 {[%emt 0:00:23]} Rb8 {[%emt 0:01:17]} 59. Rb7 {[%emt 0:03:33]} Rf8 {[%emt 0:00:26]} 60. Rf7 {[%emt 0:00:57]} Rh8 {[%emt 0:00:47]} 61. Rc7 {[%emt 0:04:05]} Kh3 {[%emt 0:00:35]} 62. Rg7 {[%emt 0:00:04]} Kh4 {[%emt 0:00:50]} 63. Rc7 {[%emt 0:00:03]} Rf8 {[%emt 0:01:12]} 64. Rf7 {[%emt 0:01:03]} Re8 {[%emt 0:00:10]} 65. Re7 {[%emt 0:00:00]} Rf8 {[%emt 0:01:24]} 66. Rf7 {[%emt 0:00:02]} g3+ {[%emt 0:01:57]} 67. Kg1 {[%emt 0:00:11]} Rh8 {[%emt 0:01:37]} 68. Rxf3 {[%emt 0:04:18]} Rxh7 {[%emt 0:00:14]} 69. Kg2 {[%emt 0:00:42]} Rg7 {[%emt 0:00:06]} 70. Rd3 {[%emt 0:00:00]} Rg4 {[%emt 0:00:09]} 71. Rc3 {[%emt 0:01:23]} Rd4 {[%emt 0:01:11]} 72. Rc2 {[%emt 0:01:06]} Kg4 {[%emt 0:00:08]} 73. Re2 {[%emt 0:00:13]} Kf4 {[%emt 0:00:11]} 74. Rb2 {[%emt 0:00:53]} Rc4 {[%emt 0:00:15]} 75. Rd2 {[%emt 0:00:27]} Ke3 {[%emt 0:01:01]} 76. Rd8 {[%emt 0:00:38]} Rg4 {[%emt 0:00:22]} 77. Rd7 {[%emt 0:00:24]} Ke2 {[%emt 0:01:00]} 78. Rd8 {[%emt 0:00:21]} Rc4 {[%emt 0:04:04]} 79. Rg8 {[%emt 0:01:09]} Rc3 {[%emt 0:00:37]} 80. Rxg3 {[%emt 0:00:06]} Kd2 {[%emt 0:00:00]} 81. Rg8 {[%emt 0:00:59]} Kc2 {[%emt 0:00:00]} 82. Kf2 {[%emt 0:00:17]} Rd3 {[%emt 0:00:58]} 83. Ke2 {[%emt 0:00:26]} Rxa3 {[%emt 0:02:36]} 84. Ra8 {[%emt 0:00:09]} Ra1 {[%emt 0:00:12]} 85. Rc8+ {[%emt 0:00:09]} Kb2 {[%emt 0:00:09]} 86. Kd2 {[%emt 0:00:38]} Ra3 {[%emt 0:00:28]} 87. Rc2+ {[%emt 0:00:13]} 1/2-1/2

[Event "Turkish Cup 2024"]
[Site "Denizli"]
[Date "2024.08.03"]
[Round "7"]
[White "Dincer, Cagla"]
[Black "Dargali, Hakan"]
[Result "0-1"]
[ECO "B00"]
[WhiteElo "1554"]
[BlackElo "1973"]
[Annotator "ChessBase"]
[PlyCount "70"]
[EventDate "2024.08.01"]
[EventType "swiss"]
[EventCountry "TUR"]
[SourceTitle "playchess.com"]
[Source "ChessBase"]
[SourceQuality "1"]
[TimeControl "5400+30"]

1. e4 {[%emt 0:06:00]} d6 {[%emt 0:01:00]} 2. Nf3 {[%emt 0:00:30]} Nc6 {[%emt 0:00:00]} 3. Bc4 {[%emt 0:03:30]} Nf6 {[%emt 0:01:00]} 4. d3 {[%emt 0:02:30]} g6 {[%emt 0:00:00]} 5. O-O {[%emt 0:02:30]} Bg7 {[%emt 0:00:00]} 6. c3 {[%emt 0:05:30]} O-O {[%emt 0:02:30]} 7. Bb3 {[%emt 0:04:30]} e5 {[%emt 0:01:30]} 8. Be3 {[%emt 0:01:30]} h6 {[%emt 0:02:30]} 9. h3 {[%emt 0:05:30]} d5 {[%emt 0:00:30]} 10. exd5 {[%emt 0:09:30]} Nxd5 {[%emt 0:00:30]} 11. Na3 {[%emt 0:04:30]} Nxe3 {[%emt 0:03:30]} 12. fxe3 {[%emt 0:01:30]} Kh7 {[%emt 0:00:30]} 13. Qe2 {[%emt 0:04:30]} Qe7 {[%emt 0:00:30]} 14. e4 {[%emt 0:03:30]} Be6 {[%emt 0:04:30]} 15. Ba4 {[%emt 0:05:30]} Bd7 {[%emt 0:03:30]} 16. Bc2 {[%emt 0:06:30]} Rad8 {[%emt 0:01:30]} 17. Kh1 {[%emt 0:03:30]} a6 {[%emt 0:01:30]} 18. Nc4 {[%emt 0:00:30]} b5 {[%emt 0:08:30]} 19. Ne3 {[%emt 0:01:30]} Be6 {[%emt 0:00:30]} 20. Bb3 {[%emt 0:00:30]} a5 {[%emt 0:17:30]} 21. Bxe6 {[%emt 0:05:30]} Qxe6 {[%emt 0:00:30]} 22. Nd5 {[%emt 0:00:30]} Qd6 {[%emt 0:00:30]} 23. a4 {[%emt 0:00:30]} b4 {[%emt 0:09:30]} 24. Nd2 {[%emt 0:02:30]} f5 {[%emt 0:09:30]} 25. Nc4 {[%emt 0:01:32]} Qd7 {[%emt 0:00:30]} 26. Rfd1 {[%emt 0:01:09]} Rf7 {[%emt 0:02:30]} 27. cxb4 {[%emt 0:04:48]} Nd4 {[%emt 0:00:30]} 28. Qd2 {[%emt 0:05:15]} Nb3 {[%emt 0:01:30]} 29. Qc3 {[%emt 0:00:30]} Nxa1 {[%emt 0:00:00]} 30. Nxa5 {[%emt 0:00:22]} Qxa4 {[%emt 0:10:02]} 31. b3 {[%emt 0:01:13]} Nxb3 {[%emt 0:01:30]} 32. Nxb3 {[%emt 0:00:07]} fxe4 {[%emt 0:00:03]} 33. dxe4 {[%emt 0:01:32]} Qb5 {[%emt 0:01:03]} 34. Rg1 {[%emt 0:03:11]} c6 {[%emt 0:00:22]} 35. Ne3 {[%emt 0:00:42]} Rd3 {[%emt 0:00:05]} 0-1

[Event "Turkish Cup 2024"]
[Site "Denizli"]
[Date "2024.08.04"]
[Round "8"]
[White "Gunduz, Umut Erdem"]
[Black "Uysal, Ugur"]
[Result "1/2-1/2"]
[ECO "E91"]
[WhiteElo "2276"]
[BlackElo "2114"]
[Annotator "RC"]
[PlyCount "79"]
[EventDate "2024.08.01"]
[EventType "swiss"]
[EventCountry "TUR"]
[SourceTitle "playchess.com"]
[Source "ChessBase"]
[SourceQuality "1"]
[TimeControl "5400+30"]

1. d4 {[%emt 0:06:00]} Nf6 {[%emt 0:01:00]} 2. c4 {[%emt 0:00:30]} g6 {[%emt 0:00:00]} 3. Nc3 {[%emt 0:00:00]} Bg7 {[%emt 0:00:00]} 4. e4 {[%emt 0:00:00]} d6 {[%emt 0:00:30]} 5. Nf3 {[%emt 0:00:00]} O-O {[%emt 0:00:00]} 6. h3 {[%emt 0:00:00]} c5 {[%emt 0:01:00]} 7. d5 {[%emt 0:00:30]} e6 {[%emt 0:00:00]} 8. Be2 {[%emt 0:00:00]} exd5 {[%emt 0:01:00]} 9. exd5 {[%emt 0:00:00]} Re8 {[%emt 0:00:30]} 10. O-O {[%emt 0:00:30]} Ne4 {[%emt 0:00:30]} 11. Nxe4 {[%emt 0:00:30]} Rxe4 {[%emt 0:00:30]} 12. Bd3 {[%emt 0:00:30]} Re8 {[%emt 0:00:00]} 13. Bg5 {[%emt 0:20:30]} Qb6 {[%emt 0:06:00]} 14. Re1 {[%emt 0:06:30]} Bd7 {[%emt 0:00:30]} 15. Nd2 {[%emt 0:06:30]} f5 {[%emt 0:22:30]} 16. Rb1 {[%emt 0:06:30]} Na6 {[%emt 0:01:30]} 17. a3 {[%emt 0:00:30]} Rxe1+ {[%emt 0:01:30]} 18. Qxe1 {[%emt 0:00:00]} Re8 {[%emt 0:00:00]} 19. Qd1 {[%emt 0:01:00]} Qa5 {[%emt 0:10:00]} 20. Bf4 {[%emt 0:13:30]} Be5 {[%emt 0:02:30]} 21. Bxe5 {[%emt 0:00:30]} Rxe5 {[%emt 0:02:30]} 22. Nf3 {[%emt 0:00:00]} Re8 {[%emt 0:01:30]} 23. Qc1 {[%emt 0:00:00]} Qd8 {[%emt 0:01:30]} 24. b4 {[%emt 0:01:30]} Qf6 {[%emt 0:07:30]} 25. Qf4 {[%emt 0:06:30]} Kg7 {[%emt 0:01:30]} 26. h4 {[%emt 0:00:30]} h6 {[%emt 0:01:30]} 27. Bc2 {[%emt 0:08:30]} Re2 {[%emt 0:04:30]} 28. Bd3 {[%emt 0:01:30]} Re8 {[%emt 0:05:30]} 29. g3 {[%emt 0:01:30]} b6 {[%emt 0:00:30]} 30. Kg2 {[%emt 0:00:30]} Re7 {[%emt 0:00:30]} 31. Qd2 {[%emt 0:06:19]} Re8 {[%emt 0:02:30]} 32. b5 {[%emt 0:02:06]} Nb8 {[%emt 0:00:30]} 33. a4 {[%emt 0:00:39]} Bc8 {[%emt 0:04:30]} 34. Qb2 {[%emt 0:01:08]} Nd7 {[%emt 0:03:30]} 35. Qxf6+ {[%emt 0:01:52]} Kxf6 {[%emt 0:00:57]} 36. a5 {[%emt 0:00:43]} bxa5 {[%emt 0:04:01]} 37. Ra1 {[%emt 0:00:30]} a6 {[%emt 0:00:05]} 38. bxa6 {[%emt 0:03:26]} Bxa6 {[%emt 0:00:30]} 39. Rxa5 {[%emt 0:00:30]} Ra8 {[%emt 0:00:03]} 40. Nd2 {[%emt 0:01:59]} 1/2-1/2

[Event "Turkish Cup 2024"]
[Site "Denizli"]
[Date "2024.08.04"]
[Round "8"]
[White "Metin, Enis"]
[Black "Zor, Emir Aras"]
[Result "1/2-1/2"]
[ECO "C95"]
[WhiteElo "2142"]
[BlackElo "1734"]
[Annotator "RC"]
[PlyCount "208"]
[EventDate "2024.08.01"]
[EventType "swiss"]
[EventCountry "TUR"]
[SourceTitle "playchess.com"]
[Source "ChessBase"]
[SourceQuality "1"]
[TimeControl "5400+30"]

1. e4 {[%emt 0:01:00]} e5 {[%emt 0:02:00]} 2. Nf3 {[%emt 0:00:30]} Nc6 {[%emt 0:00:00]} 3. Bb5 {[%emt 0:00:30]} a6 {[%emt 0:00:00]} 4. Ba4 {[%emt 0:00:00]} Nf6 {[%emt 0:00:00]} 5. O-O {[%emt 0:00:00]} Be7 {[%emt 0:00:00]} 6. Re1 {[%emt 0:00:00]} b5 {[%emt 0:00:30]} 7. Bb3 {[%emt 0:00:00]} d6 {[%emt 0:00:30]} 8. c3 {[%emt 0:00:00]} O-O {[%emt 0:00:00]} 9. h3 {[%emt 0:00:00]} Nb8 {[%emt 0:00:00]} 10. d4 {[%emt 0:00:30]} Nbd7 {[%emt 0:00:00]} 11. Nbd2 {[%emt 0:00:00]} Bb7 {[%emt 0:01:00]} 12. Bc2 {[%emt 0:00:00]} Re8 {[%emt 0:00:30]} 13. Nf1 {[%emt 0:00:00]} Bf8 {[%emt 0:00:30]} 14. Ng3 {[%emt 0:00:00]} g6 {[%emt 0:02:30]} 15. Bg5 {[%emt 0:00:30]} Bg7 {[%emt 0:00:30]} 16. Qd2 {[%emt 0:03:30]} Qe7 {[%emt 0:03:30]} 17. Nh2 {[%emt 0:08:30]} Qf8 {[%emt 0:05:30]} 18. Rad1 {[%emt 0:09:30]} h6 {[%emt 0:02:30]} 19. Be3 {[%emt 0:03:30]} d5 {[%emt 0:02:30]} 20. exd5 {[%emt 0:03:30]} Nxd5 {[%emt 0:01:30]} 21. Be4 {[%emt 0:01:30]} Nxe3 {[%emt 0:03:30]} 22. Rxe3 {[%emt 0:10:30]} Bxe4 {[%emt 0:01:30]} 23. Rxe4 {[%emt 0:00:30]} f5 {[%emt 0:01:30]} 24. Ree1 {[%emt 0:01:30]} e4 {[%emt 0:00:30]} 25. f3 {[%emt 0:00:30]} Qd6 {[%emt 0:00:30]} 26. Ngf1 {[%emt 0:00:30]} Nf6 {[%emt 0:01:30]} 27. fxe4 {[%emt 0:02:30]} Nxe4 {[%emt 0:00:30]} 28. Qc2 {[%emt 0:00:00]} Bf6 {[%emt 0:06:30]} 29. Nf3 {[%emt 0:00:00]} Rad8 {[%emt 0:04:30]} 30. N1d2 {[%emt 0:04:30]} Ng3 {[%emt 0:00:30]} 31. Nf1 {[%emt 0:00:30]} Ne4 {[%emt 0:00:00]} 32. N1d2 {[%emt 0:02:30]} Ng3 {[%emt 0:00:00]} 33. Nb3 {[%emt 0:00:30]} Ne4 {[%emt 0:00:30]} 34. Nfd2 {[%emt 0:02:30]} Ng3 {[%emt 0:00:30]} 35. Qd3 {[%emt 0:00:30]} Qf4 {[%emt 0:03:30]} 36. Qf3 {[%emt 0:03:30]} Qxf3 {[%emt 0:01:30]} 37. Nxf3 {[%emt 0:02:30]} g5 {[%emt 0:01:30]} 38. Nc5 {[%emt 0:00:30]} g4 {[%emt 0:00:00]} 39. hxg4 {[%emt 0:05:30]} fxg4 {[%emt 0:00:00]} 40. Rxe8+ {[%emt 0:06:30]} Rxe8 {[%emt 0:00:00]} 41. Nd7 {[%emt 0:00:30]} Re6 {[%emt 0:07:00]} 42. Re1 {[%emt 0:05:30]} Ne2+ {[%emt 0:01:30]} 43. Rxe2 {[%emt 0:00:30]} Rxe2 {[%emt 0:00:30]} 44. Nxf6+ {[%emt 0:00:00]} Kg7 {[%emt 0:00:30]} 45. Nxg4 {[%emt 0:00:00]} Rxb2 {[%emt 0:00:00]} 46. Ne3 {[%emt 0:00:30]} Rxa2 {[%emt 0:00:00]} 47. Nd5 {[%emt 0:00:00]} c6 {[%emt 0:00:30]} 48. Nb4 {[%emt 0:00:00]} Ra3 {[%emt 0:00:30]} 49. Ne5 {[%emt 0:01:30]} c5 {[%emt 0:05:30]} 50. dxc5 {[%emt 0:00:00]} Rxc3 {[%emt 0:00:30]} 51. Nxa6 {[%emt 0:02:00]} b4 {[%emt 0:00:00]} 52. Nxb4 {[%emt 0:00:30]} Rxc5 {[%emt 0:00:00]} 53. Nf3 {[%emt 0:00:00]} Rc4 {[%emt 0:00:30]} 54. Nd5 {[%emt 0:00:00]} Rg4 {[%emt 0:00:30]} 55. Kf2 {[%emt 0:00:30]} Rxg2+ {[%emt 0:00:00]} 56. Kxg2 {[%emt 0:00:30]} Kf7 {[%emt 0:00:00]} 57. Kg3 {[%emt 0:00:30]} Ke6 {[%emt 0:00:30]} 58. Ne3 {[%emt 0:00:00]} Kd6 {[%emt 0:00:30]} 59. Kf4 {[%emt 0:00:00]} Ke6 {[%emt 0:00:00]} 60. Ke4 {[%emt 0:00:00]} h5 {[%emt 0:00:00]} 61. Nh4 {[%emt 0:00:00]} Kd6 {[%emt 0:00:00]} 62. Kf5 {[%emt 0:00:30]} Kc5 {[%emt 0:00:00]} 63. Ke5 {[%emt 0:00:30]} Kc6 {[%emt 0:00:30]} 64. Nc4 {[%emt 0:00:00]} Kc5 {[%emt 0:00:30]} 65. Nd6 {[%emt 0:00:00]} Kc6 {[%emt 0:00:00]} 66. Ne4 {[%emt 0:00:00]} Kb5 {[%emt 0:00:00]} 67. Kd5 {[%emt 0:00:00]} Kb4 {[%emt 0:00:00]} 68. Kd4 {[%emt 0:00:00]} Kb5 {[%emt 0:00:00]} 69. Kd5 {[%emt 0:01:00]} Kb4 {[%emt 0:00:00]} 70. Nc5 {[%emt 0:00:00]} Kc3 {[%emt 0:00:00]} 71. Ne6 {[%emt 0:00:00]} Kd3 {[%emt 0:00:30]} 72. Nf4+ {[%emt 0:00:30]} Ke3 {[%emt 0:00:30]} 73. Ke5 {[%emt 0:00:30]} Kd2 {[%emt 0:00:00]} 74. Kd4 {[%emt 0:00:00]} Kc2 {[%emt 0:00:00]} 75. Nd5 {[%emt 0:00:00]} Kd2 {[%emt 0:00:00]} 76. Nc3 {[%emt 0:00:00]} Kc2 {[%emt 0:00:00]} 77. Ne4 {[%emt 0:00:00]} Kb3 {[%emt 0:00:30]} 78. Kc5 {[%emt 0:00:00]} Ka3 {[%emt 0:00:00]} 79. Kc4 {[%emt 0:00:00]} Kb2 {[%emt 0:00:00]} 80. Nc3 {[%emt 0:00:30]} Kc2 {[%emt 0:00:30]} 81. Nb5 {[%emt 0:00:30]} Kd2 {[%emt 0:00:00]} 82. Kd4 {[%emt 0:00:30]} Kc2 {[%emt 0:00:00]} 83. Na3+ {[%emt 0:00:00]} Kb3 {[%emt 0:00:30]} 84. Nc4 {[%emt 0:00:00]} Kb4 {[%emt 0:00:00]} 85. Ne5 {[%emt 0:00:00]} Kb5 {[%emt 0:00:00]} 86. Nd3 {[%emt 0:00:00]} Kc6 {[%emt 0:00:30]} 87. Ke5 {[%emt 0:00:00]} Kb6 {[%emt 0:00:00]} 88. Kd6 {[%emt 0:00:00]} Kb5 {[%emt 0:00:00]} 89. Kd5 {[%emt 0:00:00]} Kb6 {[%emt 0:00:30]} 90. Kc4 {[%emt 0:00:00]} Kc6 {[%emt 0:00:00]} 91. Ne5+ {[%emt 0:00:30]} Kd6 {[%emt 0:00:00]} 92. Kd4 {[%emt 0:00:30]} Ke6 {[%emt 0:00:30]} 93. Nc4 {[%emt 0:00:00]} Kf6 {[%emt 0:00:00]} 94. Ke4 {[%emt 0:00:00]} Kg5 {[%emt 0:00:00]} 95. Nf3+ {[%emt 0:00:30]} Kg4 {[%emt 0:00:00]} 96. Nce5+ {[%emt 0:00:00]} Kg3 {[%emt 0:00:00]} 97. Ke3 {[%emt 0:00:00]} h4 {[%emt 0:00:00]} 98. Nd4 {[%emt 0:01:30]} h3 {[%emt 0:00:00]} 99. Nf5+ {[%emt 0:00:30]} Kg2 {[%emt 0:00:30]} 100. Nd3 {[%emt 0:01:30]} h2 {[%emt 0:00:30]} 101. Nf4+ {[%emt 0:01:30]} Kg1 {[%emt 0:00:30]} 102. Ng3 {[%emt 0:01:30]} h1=Q {[%emt 0:00:30]} 103. Nfe2+ {[%emt 0:00:30]} Kg2 {[%emt 0:00:30]} 104. Nxh1 {[%emt 0:00:00]} Kxh1 {[%emt 0:00:00]} 1/2-1/2

[Event "Turkish Cup 2024"]
[Site "Denizli"]
[Date "2024.08.04"]
[Round "8"]
[White "Kavri, Yusuf Eren"]
[Black "Topuz, Mirac Melih"]
[Result "1-0"]
[ECO "A40"]
[WhiteElo "2090"]
[BlackElo "2148"]
[Annotator "RC"]
[PlyCount "93"]
[EventDate "2024.08.01"]
[EventType "swiss"]
[EventCountry "TUR"]
[SourceTitle "playchess.com"]
[Source "ChessBase"]
[SourceQuality "1"]
[TimeControl "5400+30"]

1. d4 {[%emt 0:02:00]} g6 {[%emt 0:07:00]} 2. c4 {[%emt 0:00:30]} Bg7 {[%emt 0:01:30]} 3. Nc3 {[%emt 0:00:30]} c5 {[%emt 0:00:30]} 4. d5 {[%emt 0:01:30]} Bxc3+ {[%emt 0:00:00]} 5. bxc3 {[%emt 0:00:30]} f5 {[%emt 0:00:00]} 6. e4 {[%emt 0:00:30]} fxe4 {[%emt 0:00:30]} 7. f3 {[%emt 0:00:30]} e5 {[%emt 0:00:00]} 8. dxe6 {[%emt 0:10:30]} Nc6 {[%emt 0:00:00]} 9. Qc2 {[%emt 0:01:30]} Qh4+ {[%emt 0:09:30]} 10. g3 {[%emt 0:00:30]} Qf6 {[%emt 0:00:30]} 11. fxe4 {[%emt 0:09:30]} Nge7 {[%emt 0:05:30]} 12. Be2 {[%emt 0:02:30]} Ne5 {[%emt 0:11:30]} 13. Bf4 {[%emt 0:01:30]} d6 {[%emt 0:07:30]} 14. O-O-O {[%emt 0:02:30]} Qxe6 {[%emt 0:05:30]} 15. Nf3 {[%emt 0:05:30]} O-O {[%emt 0:05:30]} 16. Nxe5 {[%emt 0:10:30]} dxe5 {[%emt 0:00:30]} 17. Bh6 {[%emt 0:00:30]} Re8 {[%emt 0:02:30]} 18. h4 {[%emt 0:01:30]} Bd7 {[%emt 0:09:30]} 19. h5 {[%emt 0:03:30]} Bc6 {[%emt 0:00:00]} 20. hxg6 {[%emt 0:03:30]} Nxg6 {[%emt 0:00:00]} 21. Be3 {[%emt 0:08:30]} b6 {[%emt 0:09:30]} 22. Rh6 {[%emt 0:00:30]} Rad8 {[%emt 0:04:30]} 23. Rdh1 {[%emt 0:02:30]} Rd7 {[%emt 0:02:56]} 24. Bh5 {[%emt 0:02:30]} Qf6 {[%emt 0:07:14]} 25. Bg4 {[%emt 0:07:30]} Rg7 {[%emt 0:03:20]} 26. Bf5 {[%emt 0:00:00]} Bd7 {[%emt 0:01:23]} 27. g4 {[%emt 0:01:00]} Qf7 {[%emt 0:00:55]} 28. Qe2 {[%emt 0:00:30]} Nf8 {[%emt 0:00:38]} 29. R1h5 {[%emt 0:07:25]} Be6 {[%emt 0:01:49]} 30. Bxe6 {[%emt 0:02:48]} Rxe6 {[%emt 0:00:09]} 31. Rf5 {[%emt 0:03:27]} Qe8 {[%emt 0:01:22]} 32. Rh1 {[%emt 0:01:12]} Ng6 {[%emt 0:03:14]} 33. Rhf1 {[%emt 0:00:30]} Rd7 {[%emt 0:01:41]} 34. Bh6 {[%emt 0:01:24]} Red6 {[%emt 0:00:27]} 35. Qf2 {[%emt 0:02:01]} Rd8 {[%emt 0:00:23]} 36. Bg5 {[%emt 0:02:05]} R8d7 {[%emt 0:00:44]} 37. Bh6 {[%emt 0:00:34]} Rd8 {[%emt 0:00:05]} 38. Kb2 {[%emt 0:04:56]} Rd1 {[%emt 0:01:07]} 39. Rf6 {[%emt 0:00:18]} Rxf1 {[%emt 0:00:47]} 40. Qxf1 {[%emt 0:00:01]} Qd7 {[%emt 0:00:11]} 41. Qf5 {[%emt 0:00:48]} Qxf5 {[%emt 0:00:51]} 42. exf5 {[%emt 0:00:52]} Nf4 {[%emt 0:00:15]} 43. Rc6 {[%emt 0:00:35]} Rd2+ {[%emt 0:00:55]} 44. Kb3 {[%emt 0:00:17]} Rg2 {[%emt 0:00:27]} 45. Rf6 {[%emt 0:00:09]} Ng6 {[%emt 0:00:14]} 46. fxg6 {[%emt 0:00:30]} hxg6 {[%emt 0:00:00]} 47. g5 {[%emt 0:00:03]} 1-0

[Event "Turkish Cup 2024"]
[Site "Denizli"]
[Date "2024.08.04"]
[Round "8"]
[White "Baylav, Can"]
[Black "Kiyak, Ali"]
[Result "1-0"]
[ECO "C77"]
[WhiteElo "2086"]
[BlackElo "1803"]
[Annotator "RC"]
[PlyCount "93"]
[EventDate "2024.08.01"]
[EventType "swiss"]
[EventCountry "TUR"]
[SourceTitle "playchess.com"]
[Source "ChessBase"]
[SourceQuality "1"]
[TimeControl "5400+30"]

1. e4 {[%emt 0:07:00]} e5 {[%emt 0:01:00]} 2. Nf3 {[%emt 0:00:30]} Nc6 {[%emt 0:00:30]} 3. Bb5 {[%emt 0:00:00]} a6 {[%emt 0:00:30]} 4. Ba4 {[%emt 0:00:00]} Nf6 {[%emt 0:00:00]} 5. d3 {[%emt 0:00:00]} d6 {[%emt 0:00:00]} 6. c3 {[%emt 0:00:00]} g6 {[%emt 0:00:30]} 7. O-O {[%emt 0:00:30]} Bg7 {[%emt 0:00:00]} 8. Re1 {[%emt 0:02:30]} O-O {[%emt 0:01:00]} 9. h3 {[%emt 0:00:30]} b5 {[%emt 0:00:30]} 10. Bc2 {[%emt 0:00:00]} Bb7 {[%emt 0:00:30]} 11. a4 {[%emt 0:00:00]} b4 {[%emt 0:00:30]} 12. a5 {[%emt 0:00:00]} Rb8 {[%emt 0:00:30]} 13. d4 {[%emt 0:07:00]} bxc3 {[%emt 0:12:30]} 14. bxc3 {[%emt 0:00:00]} exd4 {[%emt 0:06:30]} 15. cxd4 {[%emt 0:00:00]} Nb4 {[%emt 0:00:30]} 16. Nc3 {[%emt 0:06:30]} Nxc2 {[%emt 0:01:30]} 17. Qxc2 {[%emt 0:00:00]} h6 {[%emt 0:06:30]} 18. d5 {[%emt 0:02:00]} Qd7 {[%emt 0:15:30]} 19. Be3 {[%emt 0:01:30]} c6 {[%emt 0:08:30]} 20. dxc6 {[%emt 0:01:30]} Qxc6 {[%emt 0:02:30]} 21. Nd4 {[%emt 0:00:00]} Qc7 {[%emt 0:03:30]} 22. Qd3 {[%emt 0:00:00]} Rbc8 {[%emt 0:06:30]} 23. Rec1 {[%emt 0:07:30]} Qe7 {[%emt 0:02:30]} 24. f3 {[%emt 0:03:30]} d5 {[%emt 0:02:30]} 25. e5 {[%emt 0:01:30]} Qxe5 {[%emt 0:03:30]} 26. Rab1 {[%emt 0:00:30]} Ba8 {[%emt 0:05:58]} 27. Nde2 {[%emt 0:04:30]} d4 {[%emt 0:03:50]} 28. Bxd4 {[%emt 0:00:30]} Qxa5 {[%emt 0:00:10]} 29. Ra1 {[%emt 0:00:30]} Qg5 {[%emt 0:02:00]} 30. Rxa6 {[%emt 0:02:30]} Nh5 {[%emt 0:02:55]} 31. Bxg7 {[%emt 0:05:30]} Nxg7 {[%emt 0:00:13]} 32. Kh1 {[%emt 0:04:30]} Rfd8 {[%emt 0:01:26]} 33. Rd6 {[%emt 0:00:30]} Nf5 {[%emt 0:01:08]} 34. Rd7 {[%emt 0:00:30]} Rxd7 {[%emt 0:07:09]} 35. Qxd7 {[%emt 0:00:30]} Rd8 {[%emt 0:00:31]} 36. Qc7 {[%emt 0:00:30]} Re8 {[%emt 0:02:45]} 37. Ra1 {[%emt 0:01:30]} Ne3 {[%emt 0:01:24]} 38. Nf4 {[%emt 0:04:30]} Qf6 {[%emt 0:01:27]} 39. Re1 {[%emt 0:03:30]} Qe7 {[%emt 0:00:30]} 40. Qb6 {[%emt 0:01:30]} Qe5 {[%emt 0:00:31]} 41. Qb4 {[%emt 0:00:30]} g5 {[%emt 0:00:32]} 42. Nh5 {[%emt 0:00:30]} Re6 {[%emt 0:00:29]} 43. Ne4 {[%emt 0:02:30]} Bxe4 {[%emt 0:00:48]} 44. Rxe3 {[%emt 0:00:30]} Qa1+ {[%emt 0:00:09]} 45. Re1 {[%emt 0:00:30]} Qa2 {[%emt 0:00:32]} 46. Rxe4 {[%emt 0:01:30]} Qa1+ {[%emt 0:00:37]} 47. Kh2 {[%emt 0:00:30]} 1-0